fUST/lending_fUST_20240123
["ID","MTS","AMOUNT","RATE_DAILY","PERIOD"]
[312577848,1706021294248,-1113.45,0.00042191,31]
[312577849,1706021294274,-457.75435152,0.00042191,31]
[312577850,1706021294299,-500.0,0.00042191,31]
[312577851,1706021294324,-500.0,0.00042191,31]
[312577852,1706021294351,-500.0,0.00042191,31]
[312577853,1706021294377,-500.0,0.00042191,31]
[312577854,1706021294403,-835.16,0.00042191,31]
[312577855,1706021294430,-500.0,0.00042191,31]
[312577856,1706021294492,-500.0,0.00042191,31]
[312577857,1706021294529,-500.0,0.00042191,31]
[312577858,1706021294555,-500.0,0.00042191,31]
[312577859,1706021294582,-500.0,0.00042191,31]
[312577860,1706021294609,-500.0,0.00042191,31]
[312577861,1706021294638,-500.0,0.00042191,31]
[312577862,1706021294665,-500.0,0.00042191,31]
[312577863,1706021294691,-500.0,0.00042191,31]
[312577864,1706021294837,-500.0,0.00042191,31]
[312577865,1706021294861,-500.0,0.00042191,7]
[312577866,1706021294889,-500.0,0.00042191,31]
[312577867,1706021294914,-500.0,0.00042191,31]
[312577868,1706021294938,-500.0,0.00042191,31]
[312577869,1706021294965,-500.0,0.00042191,31]
[312577870,1706021294990,-500.0,0.00042191,31]
[312577871,1706021295018,-310.67235411,0.00042191,31]
[312577872,1706021295044,-500.0,0.00042191,31]
[312577873,1706021295070,-168.65414206,0.00042191,31]
[312577874,1706021295096,-500.0,0.00042191,31]
[312577875,1706021295124,-505.95,0.00042191,31]
[312577876,1706021295149,-514.35786536,0.00042191,31]
[312577877,1706021295174,-500.0,0.00042191,31]
[312577878,1706021295199,-597.5274217,0.00042191,31]
[312577879,1706021295223,-500.0,0.00042191,31]
[312577880,1706021295249,-500.0,0.00042191,31]
[312577881,1706021295274,-500.0,0.00042191,31]
[312577882,1706021295300,-500.0,0.00042191,31]
[312577883,1706021295326,-500.0,0.00042191,31]
[312577884,1706021295351,-500.0,0.00042191,31]
[312577885,1706021295376,-500.0,0.00042191,7]
[312577886,1706021295401,-500.0,0.00042191,31]
[312577887,1706021295426,-500.0,0.00042191,31]
[312577888,1706021295451,-500.0,0.00042191,31]
[312577889,1706021295478,-400.76743036,0.00042191,31]
[312577890,1706021295503,-500.0,0.00042191,31]
[312577891,1706021295528,-500.0,0.00042191,31]
[312577892,1706021295554,-500.0,0.00042191,31]
[312577893,1706021295578,-500.0,0.00042191,31]
[312577894,1706021295604,-500.0,0.00042191,31]
[312577895,1706021295630,-500.0,0.00042191,31]
[312577896,1706021295654,-500.0,0.00042191,31]
[312577897,1706021295678,-500.0,0.00042191,31]
[312577898,1706021295703,-500.0,0.00042191,31]
[312577899,1706021295729,-500.0,0.00042191,31]
[312577900,1706021295754,-500.0,0.00042191,31]
[312577901,1706021295779,-523.04575585,0.00042191,31]
[312577902,1706021295804,-541.84363945,0.00042191,31]
[312577903,1706021295828,-500.0,0.00042191,31]
[312577904,1706021295853,-1036.26,0.00042191,31]
[312577905,1706021295880,-500.0,0.00042191,31]
[312577906,1706021295906,-532.51,0.00042191,31]
[312577907,1706021295931,-500.0,0.00042191,31]
[312577908,1706021295955,-500.0,0.00042191,31]
[312577909,1706021295981,-577.63,0.00042191,31]
[312577910,1706021296087,-500.0,0.00042191,31]
[312577911,1706021296114,-500.0,0.00042191,31]
[312577912,1706021296139,-500.0,0.00042191,31]
[312577913,1706021296163,-690.48,0.00042191,31]
[312577914,1706021296188,-500.0,0.00042191,31]
[312577915,1706021296215,-500.0,0.00042191,31]
[312577916,1706021296241,-500.0,0.00042191,31]
[312577917,1706021296266,-269.96456113,0.00042191,31]
[312577918,1706021296292,-514.34581127,0.00042191,31]
[312577919,1706021296317,-500.0,0.00042191,31]
[312577920,1706021296343,-500.0,0.00042191,31]
[312577921,1706021296371,-500.0,0.00042191,31]
[312577922,1706021296399,-500.0,0.00042191,31]
[312577923,1706021296427,-500.0,0.00042191,31]
[312577924,1706021296454,-150.0,0.00042191,31]
[312577925,1706021296480,-500.0,0.00042191,31]
[312577926,1706021296507,-500.0,0.00042191,31]
[312577927,1706021296533,-500.0,0.00042191,31]
[312577928,1706021296562,-500.0,0.00042191,31]
[312577929,1706021296591,-705.29,0.00042191,31]
[312577930,1706021296623,-500.0,0.00042191,31]
[312577931,1706021296653,-500.0,0.00042191,31]
[312577932,1706021296683,-500.0,0.00042191,31]
[312577933,1706021296712,-500.0,0.00042191,31]
[312577934,1706021296739,-552.59,0.00042191,31]
[312577935,1706021296767,-500.0,0.00042191,31]
[312577936,1706021296794,-500.0,0.00042191,31]
[312577937,1706021296820,-678.43,0.00042191,31]
[312577938,1706021296847,-500.0,0.00042191,31]
[312577939,1706021296875,-500.0,0.00042191,31]
[312577940,1706021296902,-500.0,0.00042191,31]
[312577941,1706021296928,-901.26,0.00042191,31]
[312577942,1706021296956,-500.0,0.00042191,31]
[312577943,1706021296987,-500.0,0.00042191,31]
[312577944,1706021297013,-500.0,0.00042191,31]
[312577945,1706021297042,-500.0,0.00042191,31]
[312577946,1706021297069,-566.47962975,0.00042191,31]
[312577947,1706021297095,-580.9911771,0.00042191,31]
[312577948,1706021297122,-500.0,0.00042191,31]
[312577949,1706021297148,-514.23179972,0.00042191,31]
[312577950,1706021297174,-500.0,0.00042191,31]
[312577951,1706021297199,-500.0,0.00042191,31]
[312577952,1706021297225,-500.0,0.00042191,31]
[312577953,1706021297252,-500.0,0.00042191,31]
[312577954,1706021297351,-500.0,0.00042191,31]
[312577955,1706021297379,-500.0,0.00042191,31]
[312577956,1706021297405,-500.0,0.00042191,31]
[312577957,1706021297432,-200.0,0.00042191,31]
[312577958,1706021297459,-500.0,0.00042191,31]
[312577959,1706021297485,-500.0,0.00042191,31]
[312577960,1706021297512,-500.0,0.00042191,31]
[312577961,1706021297537,-500.0,0.00042191,31]
[312577962,1706021297562,-238.92013946,0.00042191,31]
[312577963,1706021297588,-500.0,0.00042191,31]
[312577964,1706021297613,-500.0,0.00042191,31]
[312577965,1706021297642,-445.60418075,0.00042191,31]
[312577966,1706021304557,-500.0,0.00043252,14]
[312577967,1706021304586,-169.3349546,0.00043252,15]
[312577968,1706021304613,-804.61457425,0.00043252,14]
[312577969,1706021304641,-19819.85285093,0.00043252,120]
[312577970,1706021304667,-220.10710182,0.00043252,120]
[312577971,1706021304692,-1194.10913622,0.00043252,120]
[312577972,1706021304718,-277291.98138218,0.00043252,35]
[312577973,1706021308548,-300000.0,0.00043252,35]
[312577974,1706021312107,-295214.32035956,0.00043252,35]
[312577975,1706021312156,-500.0,0.00043252,120]
[312577976,1706021312205,-522.68004594,0.00043252,120]
[312577977,1706021312249,-578.91811507,0.00043252,120]
[312577978,1706021312288,-455.86192806,0.00043252,120]
[312577979,1706021312329,-251.48004793,0.00043252,30]
[312577980,1706021312368,-376.12313459,0.00043252,30]
[312577981,1706021312406,-151.0456968,0.00043252,30]
[312577982,1706021312443,-314.0156607,0.00043252,120]
[312577983,1706021312469,-549.98539538,0.00043252,30]
[312577984,1706021312494,-1085.56961597,0.00043252,30]
[312578073,1706021438669,-154.98450155,0.00019901,3]
[312578075,1706021438679,-2667.19291855,0.00019901,2]
[312578078,1706021438691,-10202.84952288,0.00019901,2]
[312578085,1706021438752,-24100.35945469,0.00019901,2]
[312578087,1706021438762,-8763.20057001,0.00019902,2]
[312578089,1706021438772,-680.18772448,0.00019902,2]
[312578091,1706021438781,-555.44587219,0.00019902,2]
[312578093,1706021438790,-24900.0,0.00019908,2]
[312578094,1706021438801,-301.03488874,0.00020831,2]
[312578096,1706021438810,-484.86736169,0.00020956,2]
[312578098,1706021438819,-7999.86071246,0.00020961,2]
[312578100,1706021438828,-399.99303562,0.00021627,2]
[312578102,1706021438838,-166.666666,0.00021918,2]
[312578104,1706021438848,-2500.0,0.00021999,3]
[312578106,1706021438857,-426.05744554,0.00022,2]
[312578108,1706021438866,-166.666666,0.00022431,2]
[312578110,1706021438876,-166.666666,0.00022944,2]
[312578112,1706021438885,-3969.08835529,0.00022999,2]
[312578114,1706021438895,-1415.52295142,0.00023,2]
[312578116,1706021438904,-166.666666,0.00023456,2]
[312578118,1706021438914,-166.666666,0.00023969,2]
[312578120,1706021438923,-166.666666,0.00024482,2]
[312578134,1706021439055,-168.195619,0.00024658,2]
[312578136,1706021439066,-498.44451698,0.0002496,5]
[312578138,1706021439075,-154.98450155,0.00025,2]
[312578140,1706021439084,-4724.32599377,0.00025,2]
[312578142,1706021439093,-7382.89018777,0.00025,2]
[312578144,1706021439103,-200.0,0.000253,4]
[312578146,1706021439112,-160.65901779,0.00025379,2]
[312578148,1706021439122,-1266.95335862,0.00025457,2]
[312578150,1706021439131,-194.6733059,0.00025479,2]
[312578152,1706021439140,-168.195619,0.00025654,2]
[312578154,1706021439148,-457.17651414,0.00025727,2]
[312578156,1706021439157,-2608.81282894,0.00025727,2]
[312578158,1706021439166,-642.09024608,0.00025727,2]
[312578160,1706021439174,-218.81824267,0.00025727,2]
[312578162,1706021439183,-158.30041759,0.00025727,2]
[312578164,1706021439192,-168.195619,0.0002665,2]
[312578166,1706021439201,-391.86342974,0.00027,2]
[312578168,1706021439211,-182.62049898,0.00027,4]
[312578170,1706021439220,-8455.28,0.00027206,3]
[312578172,1706021439230,-50000.0,0.00027216,2]
[312578174,1706021439239,-973.88127452,0.00027618,2]
[312578176,1706021439248,-168.195619,0.00027646,2]
[312578178,1706021439257,-150.0,0.000279,2]
[312578180,1706021439266,-1000.0,0.00028641,2]
[312578182,1706021439276,-1007.7808751,0.00028642,2]
[312578184,1706021439285,-168.195619,0.00028643,2]
[312578186,1706021439294,-155.0,0.0002869,2]
[312578188,1706021439303,-10629.29804628,0.000289,2]
[312578190,1706021439313,-157.84343966,0.00029,2]
[312578192,1706021439322,-1620.63270875,0.00029,2]
[312578194,1706021439332,-160.65901779,0.0002938,2]
[312578196,1706021439341,-168.195619,0.00029639,2]
[312578198,1706021439350,-1844.48878611,0.00029688,2]
[312578200,1706021439360,-2226.20728526,0.00029986,2]
[312578202,1706021439369,-874.18725797,0.00029986,2]
[312578204,1706021439378,-4013.17086476,0.00029986,2]
[312578206,1706021439388,-272.59010519,0.00029987,2]
[312578208,1706021439397,-330.07067946,0.00029988,2]
[312578210,1706021439407,-683.46048677,0.00029988,2]
[312578212,1706021439416,-1241.0793343,0.00029989,2]
[312578214,1706021439425,-237.57908484,0.00029989,2]
[312578216,1706021439434,-666.00696375,0.00029989,2]
[312578218,1706021439444,-257.64938276,0.00029989,2]
[312578220,1706021439453,-561.53264515,0.00029989,2]
[312578222,1706021439462,-264.00181429,0.00029989,2]
[312578224,1706021439471,-5219.67116069,0.00029989,2]
[312578226,1706021439482,-139198.68294684,0.0003,4]
[312578228,1706021439491,-2371.7284246,0.0003,2]
[312578230,1706021439501,-244.19834346,0.0003,4]
[312578232,1706021439510,-615.46034166,0.0003,3]
[312578234,1706021439520,-155.2340082,0.0003,4]
[312578236,1706021439529,-500.0,0.0003,2]
[312578238,1706021439538,-500.0,0.0003,2]
[312578239,1706021439547,-539.577846,0.0003,3]
[312578241,1706021439556,-270.0,0.0003,2]
[312578243,1706021439566,-150.0,0.0003,2]
[312578245,1706021439574,-155.0,0.0003006,2]
[312578247,1706021439584,-155.16244617,0.00030135,2]
[312578249,1706021439593,-154.4374714,0.00030137,2]
[312578251,1706021439602,-158.1324523,0.00030137,2]
[312578253,1706021439612,-171.0157685,0.00030137,2]
[312578255,1706021439621,-153.5209745,0.00030137,2]
[312578257,1706021439630,-199.2396578,0.00030137,2]
[312578259,1706021439639,-199.2396578,0.00030137,2]
[312578261,1706021439648,-199.2396578,0.00030137,2]
[312578263,1706021439657,-159.3657322,0.00030137,2]
[312578265,1706021439666,-309.381098,0.00030137,2]
[312578267,1706021439674,-198.854395,0.00030137,2]
[312578269,1706021439683,-157.894736,0.00030137,2]
[312578271,1706021439692,-151.0,0.00030351,2]
[312578273,1706021439702,-168.195619,0.00030635,2]
[312578275,1706021439711,-157.894736,0.00030746,2]
[312578277,1706021439720,-151.0,0.00030899,2]
[312578279,1706021439731,-1400.0,0.00030899,2]
[312578281,1706021439739,-151.0,0.00030991,2]
[312578283,1706021439748,-302.0,0.00030991,2]
[312578285,1706021439757,-155.0,0.00031,4]
[312578287,1706021439767,-161.24704574,0.00031,4]
[312578289,1706021439776,-200.0,0.00031,2]
[312578291,1706021439785,-150.0,0.00031135,2]
[312578293,1706021439794,-157.894736,0.00031355,2]
[312578295,1706021439803,-155.0,0.0003143,2]
[312578297,1706021439812,-168.195619,0.00031631,2]
[312578299,1706021439822,-157.894736,0.00031963,2]
[312578301,1706021439831,-155.0,0.00032,4]
[312578303,1706021439840,-3136.03162051,0.00032,2]
[312578305,1706021439849,-200.0,0.00032,2]
[312578307,1706021439858,-150.0,0.00032,4]
[312578309,1706021439868,-151.0,0.00032,2]
[312578311,1706021439878,-151.0,0.00032,2]
[312578313,1706021439888,-620.00000002,0.0003201,2]
[312578315,1706021439897,-150.0,0.00032135,2]
[312578317,1706021439907,-180.450802,0.000325,2]
[312578319,1706021439917,-151.0,0.000325,2]
[312578321,1706021439927,-157.894736,0.00032572,2]
[312578322,1706021439937,-168.195619,0.00032628,2]
[312578324,1706021439948,-155.0,0.000328,2]
[312578326,1706021439958,-1000.0,0.00032876,2]
[312578328,1706021439968,-246.5520124,0.00032877,2]
[312578331,1706021439987,-160.0,0.00032877,2]
[312578332,1706021439998,-160.0,0.00032877,2]
[312578334,1706021440008,-160.0,0.00032877,2]
[312578336,1706021440021,-160.0,0.00032877,2]
[312578338,1706021440030,-233.07178,0.00032877,2]
[312578340,1706021440040,-2027.58163197,0.00033,2]
[312578342,1706021440050,-689.80333166,0.00033,3]
[312578344,1706021440061,-927.04922464,0.00033,3]
[312578346,1706021440071,-200.0,0.00033,2]
[312578348,1706021440081,-2847.25818933,0.00033,2]
[312578350,1706021440089,-100000.0,0.00033,5]
[312578352,1706021440100,-151.0,0.00033,2]
[312578354,1706021440110,-270.0,0.00033,2]
[312578356,1706021440119,-270.0,0.00033,2]
[312578358,1706021440128,-157.894736,0.00033181,2]
[312578360,1706021440138,-160.65901779,0.00033381,2]
[312578362,1706021440147,-944.82047,0.00033481,2]
[312578364,1706021440156,-878.278187,0.00033481,2]
[312578366,1706021440166,-2942.568621,0.00033481,2]
[312578368,1706021440175,-165.6339,0.00033481,2]
[312578370,1706021440185,-166.679113,0.00033481,2]
[312578372,1706021440194,-168.195619,0.00033624,2]
[312578374,1706021440204,-2000.0,0.0003367,2]
[312578375,1706021440213,-157.894736,0.0003379,2]
[312578377,1706021440222,-944.82047,0.000339,2]
[312578378,1706021440239,-878.278187,0.000339,2]
[312578380,1706021440250,-2942.568621,0.000339,2]
[312578382,1706021440259,-500.0,0.00033998,7]
[312578383,1706021440269,-500.0,0.00033998,7]
[312578385,1706021440278,-500.0,0.00033998,7]
[312578386,1706021440287,-500.0,0.00033998,7]
[312578387,1706021440297,-279.50241941,0.00033998,7]
[312578389,1706021440306,-500.0,0.00033998,7]
[312578390,1706021440316,-500.0,0.00033998,7]
[312578391,1706021440325,-500.0,0.00033998,7]
[312578392,1706021440335,-500.0,0.00033998,7]
[312578393,1706021440344,-500.0,0.00033998,7]
[312578394,1706021440353,-400.82419794,0.00033998,7]
[312578395,1706021440362,-500.0,0.00033998,7]
[312578396,1706021440371,-500.0,0.00033998,7]
[312578397,1706021440380,-500.0,0.00033998,7]
[312578398,1706021440388,-500.0,0.00033998,7]
[312578399,1706021440397,-500.0,0.00033998,7]
[312578400,1706021440406,-500.0,0.00033998,7]
[312578401,1706021440415,-500.0,0.00033998,7]
[312578402,1706021440424,-500.0,0.00033998,7]
[312578403,1706021440433,-500.0,0.00033998,7]
[312578404,1706021440442,-500.0,0.00033998,7]
[312578405,1706021440451,-500.0,0.00033998,7]
[312578406,1706021440460,-500.0,0.00033998,7]
[312578407,1706021440469,-466.78697537,0.00033998,7]
[312578408,1706021440482,-500.0,0.00033998,7]
[312578409,1706021440491,-500.0,0.00033998,7]
[312578410,1706021440500,-500.0,0.00033998,7]
[312578411,1706021440510,-500.0,0.00033998,7]
[312578412,1706021440519,-500.0,0.00033998,7]
[312578413,1706021440528,-500.0,0.00033998,7]
[312578414,1706021440537,-546.3058655,0.00033998,7]
[312578415,1706021440546,-500.0,0.00033998,7]
[312578416,1706021440555,-500.0,0.00033998,7]
[312578417,1706021440563,-500.0,0.00033998,7]
[312578418,1706021440572,-500.0,0.00033998,7]
[312578419,1706021440581,-500.0,0.00033998,7]
[312578420,1706021440590,-500.0,0.00033998,7]
[312578421,1706021440600,-374.77615627,0.00033998,7]
[312578422,1706021440609,-500.0,0.00033998,7]
[312578423,1706021440618,-500.0,0.00033998,7]
[312578424,1706021440627,-500.0,0.00033998,7]
[312578426,1706021440636,-500.0,0.00033998,7]
[312578427,1706021440645,-500.0,0.00033998,7]
[312578428,1706021440655,-500.0,0.00033998,7]
[312578429,1706021440664,-500.0,0.00033998,7]
[312578430,1706021440673,-500.0,0.00033998,7]
[312578431,1706021440683,-259.50726678,0.00033998,7]
[312578432,1706021440692,-500.0,0.00033998,7]
[312578433,1706021440702,-500.0,0.00033998,7]
[312578434,1706021440712,-500.0,0.00033998,7]
[312578435,1706021440721,-500.0,0.00033998,7]
[312578436,1706021440734,-500.0,0.00033998,7]
[312578437,1706021440743,-500.0,0.00033998,7]
[312578438,1706021440753,-500.0,0.00033998,7]
[312578440,1706021440763,-500.0,0.00033998,7]
[312578441,1706021440772,-500.0,0.00033998,7]
[312578442,1706021440781,-500.0,0.00033998,7]
[312578443,1706021440790,-500.0,0.00033998,7]
[312578444,1706021440799,-500.0,0.00033998,7]
[312578445,1706021440808,-500.0,0.00033998,7]
[312578446,1706021440818,-500.0,0.00033998,7]
[312578447,1706021440827,-430.24496122,0.00033998,7]
[312578448,1706021440836,-500.0,0.00033998,7]
[312578449,1706021440845,-500.0,0.00033998,7]
[312578450,1706021440854,-595.79598502,0.00033998,7]
[312578451,1706021440864,-500.0,0.00033998,7]
[312578452,1706021440873,-500.0,0.00033998,7]
[312578453,1706021440882,-500.0,0.00033998,7]
[312578454,1706021440892,-500.0,0.00033998,7]
[312578455,1706021440901,-500.0,0.00033998,7]
[312578456,1706021440910,-500.0,0.00033998,7]
[312578457,1706021440920,-1120.99793907,0.00033999,3]
[312578458,1706021440929,-51731.06290241,0.00034,2]
[312578459,1706021440938,-200.0,0.00034,2]
[312578460,1706021440947,-3964.95332805,0.00034,3]
[312578461,1706021440956,-200.30710645,0.00034,2]
[312578462,1706021440965,-150.1,0.00034164,2]
[312578463,1706021440975,-155.0,0.0003417,2]
[312578465,1706021440985,-944.82047,0.00034318,2]
[312578467,1706021440994,-878.278187,0.00034318,2]
[312578468,1706021441003,-2942.568621,0.00034318,2]
[312578470,1706021441013,-157.894736,0.00034399,2]
[312578472,1706021441028,-389.677092,0.0003441,2]
[312578474,1706021441037,-624.024844,0.0003441,2]
[312578475,1706021441047,-168.195619,0.0003462,2]
[312578477,1706021441056,-151.0,0.00034736,2]
[312578478,1706021441065,-944.82047,0.00034737,2]
[312578479,1706021441075,-878.278187,0.00034737,2]
[312578480,1706021441084,-2942.568621,0.00034737,2]
[312578481,1706021441094,-389.677092,0.0003484,2]
[312578483,1706021441103,-624.024844,0.0003484,2]
[312578484,1706021441112,-38635.00137162,0.000349,3]
[312578486,1706021441122,-286.73419814,0.00035,6]
[312578487,1706021441131,-845.9015611,0.00035,2]
[312578488,1706021441140,-155.19345917,0.00035,2]
[312578489,1706021441149,-945.03433906,0.00035,4]
[312578490,1706021441158,-204.41041816,0.00035,4]
[312578491,1706021441167,-48696.40712257,0.00035,2]
[312578492,1706021441176,-2059.24791852,0.00035,4]
[312578493,1706021441185,-1028.83,0.00035,4]
[312578494,1706021441193,-13394.14213022,0.00035,4]
[312578495,1706021441203,-155.31862039,0.00035,4]
[312578496,1706021441212,-200.0,0.00035,2]
[312578497,1706021441222,-20000.0,0.00035,3]
[312578498,1706021441232,-2357.58600903,0.00035,2]
[312578499,1706021441242,-3926.26110598,0.00035,2]
[312578500,1706021441251,-10169.09200623,0.00035,2]
[312578501,1706021441260,-563.97366206,0.00035,2]
[312578502,1706021441269,-476.23663769,0.00035,4]
[312578503,1706021441278,-2028.32978397,0.00035,2]
[312578504,1706021441302,-21247.37087492,0.00035,2]
[312578505,1706021441312,-873.92405937,0.00035,5]
[312578506,1706021441321,-715.92101583,0.00035,2]
[312578507,1706021441330,-165.0,0.00035,2]
[312578508,1706021441339,-151.0,0.00035,2]
[312578509,1706021441349,-151.0,0.00035,2]
[312578510,1706021441359,-1117.11167906,0.00035,7]
[312578511,1706021441368,-502.19143258,0.00035,14]
[312578512,1706021441378,-12.11789878,0.00035,2]
[312578516,1706021442028,-973.16882197,0.00035,2]
[312578538,1706021443588,-182.62049898,0.00027205,4]
[312578539,1706021443598,-599.48418465,0.00035,2]
[312578542,1706021443652,-6297.94492534,0.00035,2]
[312578543,1706021443661,-157.894736,0.00035008,2]
[312578544,1706021443671,-944.82047,0.00035155,2]
[312578545,1706021443680,-199.1729871,0.00035155,2]
[312578546,1706021443692,-679.1051999,0.00035155,2]
[312578547,1706021443701,-2942.568621,0.00035155,2]
[312578548,1706021443710,-389.677092,0.0003527,2]
[312578549,1706021443719,-624.024844,0.0003527,2]
[312578550,1706021443729,-10.70265565,0.000355,14]
[312578551,1706021443741,-929.59580791,0.000355,14]
[312578599,1706021446725,-270.0,0.000355,2]
[312578601,1706021446735,-17035.43,0.000355,14]
[312578604,1706021446750,-444.18048385,0.000355,14]
[312578692,1706021637163,2187.03839785,0.0003,120]
[312579016,1706022640978,-155.0,0.00021649,2]
[312579017,1706022640988,-155.0,0.00021649,4]
[312579018,1706022640998,-2500.0,0.00021649,3]
[312579019,1706022641007,-16249.19504205,0.0002165,2]
[312579121,1706022642785,-465.7143465,0.0002165,2]
[312579124,1706022642797,-345.1632,0.0002165,2]
[312579131,1706022642848,-1116.25571,0.0002165,2]
[312579134,1706022642859,-730.0,0.0002165,2]
[312579292,1706022646165,-1935.5,0.0002165,2]
[312579294,1706022646177,-4058.17170145,0.0002165,2]
[312579296,1706022646186,-469.15522571,0.00021687,2]
[312579298,1706022646197,-1556.06280182,0.00021687,2]
[312579300,1706022646206,-3639.19420045,0.00021687,2]
[312579302,1706022646216,-166.666666,0.00021918,2]
[312579304,1706022646225,-293.49920597,0.00022,4]
[312579306,1706022646234,-3969.08835529,0.00022,2]
[312579308,1706022646244,-426.05744554,0.00022,2]
[312579310,1706022646252,-166.666666,0.00022431,2]
[312579312,1706022646261,-166.666666,0.00022944,2]
[312579314,1706022646270,-1415.52295142,0.00023,2]
[312579316,1706022646279,-166.666666,0.00023456,2]
[312579318,1706022646288,-166.666666,0.00023969,2]
[312579320,1706022646298,-166.666666,0.00024482,2]
[312579322,1706022646307,-183.01553,0.00024658,2]
[312579324,1706022646316,-280.0,0.00024658,2]
[312579326,1706022646325,-498.44451698,0.0002496,5]
[312579328,1706022646335,-4724.32599377,0.00025,2]
[312579330,1706022646343,-7382.89018777,0.00025,2]
[312579332,1706022646352,-154.98450155,0.00025,2]
[312579334,1706022646362,-300.0,0.000251,11]
[312579336,1706022646371,-183.01553,0.0002544,2]
[312579338,1706022646380,-183.01553,0.00026223,2]
[312579339,1706022646395,-620.80506966,0.000264,2]
[312579341,1706022646404,-547.187732,0.000266,12]
[312579343,1706022646413,-290.39350348,0.00027,2]
[312579346,1706022646423,-182.62049898,0.00027,4]
[312579347,1706022646433,-183.01553,0.00027006,2]
[312579349,1706022646443,-3614.29412854,0.00027452,2]
[312579351,1706022646451,-9997.8588257,0.00027452,2]
[312579353,1706022646461,-160.52256152,0.00027452,2]
[312579355,1706022646470,-17237.1,0.0002771,3]
[312579357,1706022646480,-620.04025348,0.0002772,2]
[312579359,1706022646489,-183.01553,0.00027789,2]
[312579361,1706022646499,-1000.0,0.00028,2]
[312579363,1706022646509,-203.8,0.00028,4]
[312579365,1706022646518,-159.06835645,0.0002828,2]
[312579367,1706022646528,-9123.34425635,0.000285,4]
[312579369,1706022646537,-183.01553,0.00028571,2]
[312579371,1706022646546,-18485.68564463,0.000288,2]
[312579373,1706022646556,-1620.63270875,0.00029,2]
[312579375,1706022646565,-620.00201267,0.00029106,2]
[312579377,1706022646574,-155.0,0.00029136,2]
[312579379,1706022646585,-183.01553,0.00029354,2]
[312579381,1706022646595,-2344.58947028,0.0003,2]
[312579383,1706022646604,-6199.48277774,0.0003,2]
[312579385,1706022646613,-2245.4473592,0.0003,30]
[312579388,1706022646625,-300.0,0.0003,4]
[312579390,1706022646640,-2023.18378922,0.0003,4]
[312579392,1706022646653,-777.70876221,0.0003,4]
[312579394,1706022646662,-351.52136299,0.0003,2]
[312579396,1706022646672,-154.98450155,0.0003,4]
[312579398,1706022646682,-154.98450155,0.0003,7]
[312579400,1706022646692,-154.98450155,0.0003,4]
[312579402,1706022646701,-1026.65405285,0.0003,2]
[312579404,1706022646710,-847.10572159,0.0003,2]
[312579409,1706022646753,-1606.643575,0.0003,2]
[312579411,1706022646762,-1879.28345586,0.0003,2]
[312579671,1706023636443,200.0,0.00021757,7]
[312579798,1706023838023,-810.28240539,0.0001977,2]
[312579799,1706023838033,-154.92253873,0.00019771,3]
[312579800,1706023838043,-1253.61322307,0.00019771,2]
[312579801,1706023838057,-1833.01399281,0.0001978,2]
[312579802,1706023838069,-633.41305306,0.0001978,2]
[312579803,1706023838080,-10202.84952288,0.0001978,2]
[312579804,1706023838092,-24301.12532737,0.0001978,2]
[312579805,1706023838101,-24900.0,0.00019781,2]
[312579806,1706023838111,-678.76688666,0.0002,2]
[312579807,1706023838119,-850.45866081,0.0002,2]
[312579808,1706023838129,-172.426731,0.00020721,2]